[Event "Karnataka State Open-ch 2018"]
[Site "Bengaluru"]
[Date "2018.04.18"]
[Round "10"]
[White "Santoshkashyap, HG."]
[Black "Chirag Mudraje"]
[Result "1-0"]
[ECO "D37"]
[WhiteElo "1929"]
[BlackElo "1641"]
[Annotator "NA RC"]
[PlyCount "73"]
[EventDate "2018.??.??"]
[EventType "swiss"]
[EventCountry "IND"]
[SourceTitle "playchess.com"]
[Source "ChessBase"]
[SourceQuality "1"]
[TimeControl "5400+30"]

{[%evp 8,73,23,18,54,11,117,147,140,33,133,58,39,33,24,12,47,0,35,16,122,61,108,106,108,32767,74,29,37,31,32767,40,106,32767,100,91,258,235,243,233,275,257,257,257,260,256,823,409,451,484,452,436,432,427,500,447,531,293,520,550,526,607,720,627,627,659,29995,29996]} 1. d4 {[%emt 0:00:00]} Nf6 {[%emt 0:00:38]} 2. Nf3 {[%emt 0:00:00]} d5 {[%emt 0:00:21]} 3. c4 {[%emt 0:00:01]} e6 {[%emt 0:00:25]} 4. Nc3 {[%emt 0:00:07]} Be7 {[%emt 0:00:50]} 5. Bf4 {[%emt 0:00:09]} Nbd7 {[%emt 0:01:37]} 6. e3 {[%emt 0:00:33]} b6 {[%emt 0:06:31] [#]} (6... O-O $11) 7. cxd5 $1 {[%emt 0:00:53]} exd5 {[%emt 0:00:52]} 8. Bd3 {[%emt 0:01:16]} ({Better is} 8. Qa4 $16) 8... Bb7 {[%emt 0:02:39]} (8... O-O $14) 9. O-O {[%emt 0:00:09]} (9. Nb5 $16 O-O 10. Bxc7 (10. Nxc7 Rc8 $16) 10... Bb4+ 11. Ke2) 9... O-O {[%emt 0:06:49]} 10. Rc1 {[%emt 0:06:10]} c5 {[%emt 0:06:18]} 11. Ne5 {[%emt 0:02:36]} Nxe5 {[%emt 0:09:05] LiveBook: 3 Games} 12. Bxe5 {[%emt 0:09:21] D37: Queen's Gambit Declined: 5 Bf4} (12. dxe5 Ne4 13. Nxe4 dxe4 14. Bc4 Qxd1 15. Rfxd1 Rfd8 16. e6 fxe6 17. Bxe6+ Kf8 18. Bc7 Rd3 19. Bc4 Rxd1+ 20. Rxd1 {1-0 (55) Pavlovic,M (2569)-Jakovenko,D (2564) Dos Hermanas 2004}) 12... g6 {[%emt 0:04:37]} (12... c4 $5 {[%cal Rc4d3]} 13. Bc2 Qd7 $11) 13. Qf3 {[%emt 0:13:29]} Ne8 {[%emt 0:08:37]} ({Black should try} 13... Rc8 $14) 14. Rfd1 $146 {[%emt 0:00:22]} ({Predecessor:} 14. g4 f6 15. Bg3 Ng7 16. e4 dxe4 17. Bxe4 Bxe4 18. Qxe4 {0-1 (34) Winter,K-Mueller,M (2300) Dresden 1993}) 14... Bf6 {[%emt 0:06:21]} 15. Bc4 {[%emt 0:06:45]} cxd4 {[%emt 0:11:09]} 16. exd4 {[%emt 0:00:25]} Bg5 {[%emt 0:07:46]} 17. Rb1 {[%emt 0:05:55]} ({Much worse is} 17. Nxd5 Rc8 $15) 17... Rc8 {[%emt 0:00:57]} 18. Bb3 {[%emt 0:01:59]} Nc7 {[%emt 0:03:25]} 19. g3 {[%emt 0:09:27]} Ba8 {[%emt 0:04:45]} (19... Bh6 $14) 20. h4 {[%emt 0:00:41]} Be7 {[%emt 0:03:27]} 21. Rbc1 {[%emt 0:06:26]} a6 $2 {[%emt 0:06:25] [#]} (21... Bd6 $16) 22. Na4 $1 {[%emt 0:03:01]} Bd6 {[%emt 0:02:35]} 23. Nxb6 {[%emt 0:01:03]} Rb8 {[%emt 0:00:09]} 24. Nxa8 {[%emt 0:00:11]} ({Don't do} 24. Nxd5 $6 Nxd5 25. Bxd5 Bxd5 $16) 24... Rxa8 {[%emt 0:00:08]} 25. Rc6 {[%emt 0:01:11]} Bxe5 {[%emt 0:00:43]} 26. dxe5 {[%emt 0:00:08]} d4 $2 {[%emt 0:00:53]} (26... Rb8 27. h5 Qd7) 27. Rd6 {[%emt 0:00:14]} (27. h5 $142 gxh5 28. Qxh5) 27... Qe7 {[%emt 0:00:13]} 28. R6xd4 {[%emt 0:08:02]} Qxe5 {[%emt 0:00:19]} 29. Rd7 {[%emt 0:00:07]} Ne6 {[%emt 0:00:55] [#]} 30. Rxf7 $1 {[%emt 0:00:17]} Rxf7 {[%emt 0:00:16]} 31. Qxa8+ {[%emt 0:00:05]} Kg7 {[%emt 0:00:15]} 32. Qd5 {[%emt 0:03:44]} Qxb2 $2 {[%emt 0:01:21]} (32... Qxd5 {was called for.} 33. Rxd5 Rc7) 33. Qxe6 {[%emt 0:00:43]} Qxf2+ {[%emt 0:00:39]} 34. Kh1 {[%emt 0:00:04]} Qf3+ {[%emt 0:00:44]} 35. Kh2 {[%emt 0:00:06]} Qf2+ {[%emt 0:00:48]} 36. Kh3 {[%emt 0:00:06]} Rf3 {[%emt 0:00:12]} 37. Rd7+ {[%emt 0:00:36]} 1-0

[Event "Karnataka State Open-ch 2018"]
[Site "Bengaluru"]
[Date "2018.04.18"]
[Round "10"]
[White "Sudarshan Bhat"]
[Black "Arhan, Chethan Anand"]
[Result "1-0"]
[ECO "C54"]
[WhiteElo "1892"]
[BlackElo "1526"]
[Annotator "NA RC"]
[PlyCount "129"]
[EventDate "2018.??.??"]
[EventType "swiss"]
[EventCountry "IND"]
[SourceTitle "playchess.com"]
[Source "ChessBase"]
[SourceQuality "1"]
[TimeControl "5400+30"]

{[%evp 11,128,-7,8,0,32767,16,33,34,79,54,84,94,88,78,90,85,92,11,0,-11,0,2,39,0,32,-24,-16,-34,-23,-8,58,93,199,49,139,32,325,243,403,277,32767,292,295,32767,32767,32767,32767,32767,107,91,98,89,54,94,32767,273,557,92,182,180,175,172,277,203,764,827,1681,1675,1572,1664,1748,1552,1447,1029,1026,1134,1127,1072,993,462,770,508,491,537,564,32767,32767,32767,32767,310,370,377,492,527,509,32767,32767,32767,32767,32767,666,691,532,518,416,361,1295,1691,1366,2177,1201,12812,32767,32767,32767,32767,32767,29981,29999]} 1. e4 {[%emt 0:00:00]} e5 {[%emt 0:00:10]} 2. Nf3 {[%emt 0:00:07]} Nc6 {[%emt 0:00:07]} 3. Bc4 {[%emt 0:00:12]} Bc5 {[%emt 0:00:13]} 4. c3 {[%emt 0:00:21]} Nf6 {[%emt 0:00:09]} 5. d3 {[%emt 0:00:06]} O-O {[%emt 0:00:09]} 6. Bb3 {[%emt 0:00:26]} d6 {[%emt 0:00:36]} 7. Bg5 {[%emt 0:00:31] LiveBook: 40 Games C54: Giuoco Piano: 4 c3 Nf6, main lines with 5 d4 and 5 d3} (7. h3 a6 8. Nbd2 Be6 9. Bc2 d5 10. Qe2 h6 11. g4 Nh7 12. Rg1 d4 13. Nb3 Be7 14. Nxe5 Nxe5 15. Nxd4 c5 16. Nf5 Kh8 {1-0 (35) Duda,J (2678)-Eljanov,P (2741) Germany 2017}) 7... Bg4 {[%emt 0:03:12]} 8. Nbd2 {[%emt 0:00:32]} Qe7 {[%emt 0:07:38]} 9. h3 {[%emt 0:02:51]} Bh5 {[%emt 0:01:43]} 10. Nf1 $146 {[%emt 0:01:06]} ({Predecessor:} 10. g4 Bg6 11. Nf1 Nd8 12. Ne3 c6 13. Nf5 Bxf5 14. gxf5 g6 {½-½ (51) Ungure,L (2019)-Otikova,E (1939) Riga 2014}) 10... Nd8 {[%emt 0:02:10]} 11. Ng3 {[%emt 0:12:47]} Bg6 {[%emt 0:01:04]} 12. Nh4 {[%emt 0:01:03]} Ne6 {[%emt 0:02:24] [#]} 13. Nhf5 $1 {[%emt 0:00:34]} Qd8 {[%emt 0:01:09] [#]} 14. h4 {[%emt 0:10:02]} (14. Bh4 $1 $16) 14... h6 {[%emt 0:01:03]} 15. Bxf6 {[%emt 0:06:10]} Qxf6 {[%emt 0:00:35]} 16. Qf3 {[%emt 0:00:56]} Nf4 {[%emt 0:03:28]} 17. h5 {[%emt 0:06:55]} Bh7 {[%emt 0:01:20]} (17... Bxf5 $5 18. Nxf5 Ne6 $11) 18. Rh4 {[%emt 0:05:23]} Ne6 {[%emt 0:05:56]} 19. Rg4 {[%emt 0:06:09]} Ng5 {[%emt 0:00:10]} 20. Qe2 {[%emt 0:00:21]} Bxf5 {[%emt 0:01:51]} (20... Rae8 $11) 21. Nxf5 {[%emt 0:00:27]} c6 {[%emt 0:01:47] [#]} (21... a5 $14) 22. O-O-O {[%emt 0:05:08]} (22. g3 $1 $18) 22... Kh8 {[%emt 0:02:07]} (22... Rae8 $14) 23. Rf1 {[%emt 0:03:03]} (23. d4 $16 exd4 24. f4 (24. cxd4 Bb6 $14) (24. Nxd4 Rfe8 $11)) 23... g6 $2 {[%emt 0:03:44]} ({Black should play} 23... d5 $14) 24. f4 {[%emt 0:07:35]} exf4 $2 {[%emt 0:01:45]} (24... gxf5 {might work better.} 25. fxg5 hxg5) 25. hxg6 {[%emt 0:01:36]} fxg6 {[%emt 0:00:42]} 26. Nxh6 {[%emt 0:06:31]} Kg7 {[%emt 0:00:25]} 27. Rgxf4 {[%emt 0:03:10]} Qxf4+ {[%emt 0:02:07]} 28. Rxf4 {[%emt 0:00:02]} Rxf4 {[%emt 0:00:18]} 29. Ng4 {[%emt 0:01:16]} Rh8 {[%emt 0:01:02] [#]} 30. g3 {[%emt 0:04:35]} ({Better is} 30. Bd1 $1) 30... Rh1+ {[%emt 0:00:22]} 31. Kc2 {[%emt 0:01:13]} Rff1 {[%emt 0:01:09]} 32. d4 $1 {[%emt 0:00:26]} Rc1+ {[%emt 0:02:18]} 33. Kd3 {[%emt 0:01:48]} Bb6 $2 {[%emt 0:01:34]} (33... d5 {is more resistant.}) 34. Qe3 $2 {[%emt 0:00:58]} (34. Ne3 $18 {is the precise move to win.}) 34... Bd8 {[%emt 0:00:48]} (34... Nf7 $16) 35. Qf4 {[%emt 0:01:15]} Be7 {[%emt 0:00:37] [#]} 36. Ne3 $1 {[%emt 0:02:11]} Rcg1 {[%emt 0:00:46]} 37. Qg4 {[%emt 0:04:23]} d5 $2 {[%emt 0:04:07]} (37... Rh7 38. a3 a6) 38. exd5 {[%emt 0:01:43]} Bf6 {[%emt 0:07:04]} 39. dxc6 {[%emt 0:01:11]} bxc6 {[%emt 0:00:07]} 40. Qd7+ {[%emt 0:00:59]} Kf8 {[%emt 0:00:33]} 41. Qd6+ {[%emt 0:01:00]} Kg7 {[%emt 0:00:40]} 42. Qxc6 {[%emt 0:01:37]} Rh8 {[%emt 0:02:15]} 43. Qd7+ {[%emt 0:00:31]} Kf8 {[%emt 0:00:05]} 44. Qd6+ {[%emt 0:00:21]} Kg7 {[%emt 0:00:25]} 45. Ng4 {[%emt 0:00:52]} (45. Qc7+ $142 Kf8 46. Qb8+ Kg7 47. Qxa7+ Kf8 48. Qc7) 45... Rf8 {[%emt 0:01:00]} (45... Rxg3+ $142 46. Kc4 Rf3) 46. Nxf6 {[%emt 0:00:45]} Rxf6 {[%emt 0:00:04]} 47. Qe7+ {[%emt 0:00:15]} Nf7 {[%emt 0:00:07]} 48. Bxf7 {[%emt 0:00:18]} Rxf7 {[%emt 0:00:07]} 49. Qe5+ {[%emt 0:00:08]} Kh7 {[%emt 0:00:04]} 50. g4 {[%emt 0:01:07]} Rxg4 {[%emt 0:00:22]} 51. d5 {[%emt 0:00:45]} Rf5 {[%emt 0:00:14]} 52. Qe7+ {[%emt 0:00:37]} Kh6 {[%emt 0:00:11]} 53. Qe3+ {[%emt 0:00:42]} Kg7 {[%emt 0:00:08]} 54. Qxa7+ {[%emt 0:00:10]} Kh6 {[%emt 0:00:05]} 55. Qe3+ {[%emt 0:00:13]} Kg7 {[%emt 0:00:14]} 56. Qe7+ {[%emt 0:01:08]} Kh6 {[%emt 0:00:09]} 57. d6 {[%emt 0:00:30]} Rd5+ {[%emt 0:00:43]} 58. Ke3 {[%emt 0:00:22]} Rh5 $2 {[%emt 0:00:08]} (58... Rg3+ 59. Ke4 Rgd3 60. Qf8+ Kh5 61. Qh8+ Kg5) 59. d7 {[%emt 0:00:55]} Rh3+ {[%emt 0:00:17]} 60. Kf2 {[%emt 0:00:10]} Rf4+ {[%emt 0:00:23]} 61. Kg2 {[%emt 0:00:31]} Rd3 {[%emt 0:00:15]} 62. d8=Q {[%emt 0:00:24]} Rxd8 {[%emt 0:00:13]} 63. Qxd8 {[%emt 0:00:08]} Rg4+ {[%emt 0:00:02]} 64. Kf3 {[%emt 0:00:10]} Rg5 {[%emt 0:00:10]} 65. Qh8# {[%emt 0:00:06]} 1-0

[Event "Karnataka State Open-ch 2018"]
[Site "Bengaluru"]
[Date "2018.04.18"]
[Round "10"]
[White "Sameer, Ghotane"]
[Black "Nitish Bhat"]
[Result "1/2-1/2"]
[ECO "E94"]
[WhiteElo "1881"]
[BlackElo "1637"]
[Annotator "NA RC"]
[PlyCount "170"]
[EventDate "2018.??.??"]
[EventType "swiss"]
[EventCountry "IND"]
[SourceTitle "playchess.com"]
[Source "ChessBase"]
[SourceQuality "1"]
[TimeControl "5400+30"]

{[%evp 14,157,25,32767,32767,32767,32767,32767,32767,41,71,34,21,-64,-87,-133,-124,-135,0,-198,-177,-215,-166,-221,-224,-203,-239,-250,-250,-240,-97,-76,-13,-24,31,-32,-35,-35,0,-48,-19,-56,32767,-118,-119,-114,-108,-132,32767,-224,-201,-213,-212,-212,-220,-279,-111,-117,-123,-110,-129,-117,-122,-126,-126,-208,-187,-159,-138,-160,-123,-163,-161,-188,-29,-46,-32,-425,-35,-222,-226,-185,-187,-277,-66,-77,0,0,0,0,0,32767,32767,32767,32767,0,0,0,0,0,0,32767,32767,32767,32767,32767,0,0,0,0,32767,32767,32767,32767,0,32767,32767,32767,32767,32767,32,45,32767,32767,32767,32767,70,66,8,45,32767,32767,32767,32767,32767,32767,32767,32767,32767,32767,32767,32767,32767,8,70,8]} 1. d4 {[%emt 0:00:00]} Nf6 {[%emt 0:00:05]} 2. c4 {[%emt 0:00:00]} g6 {[%emt 0:00:03]} 3. Nc3 {[%emt 0:00:00]} Bg7 {[%emt 0:00:02]} 4. Nf3 {[%emt 0:00:00]} d6 {[%emt 0:00:03]} 5. e4 {[%emt 0:00:01]} O-O {[%emt 0:00:05]} 6. Be2 {[%emt 0:00:02]} e5 {[%emt 0:00:09]} 7. O-O {[%emt 0:00:05]} Nbd7 {[%emt 0:01:26] LiveBook: 5018 Games} 8. Be3 {[%emt 0:03:13]} a5 {[%emt 0:03:01]} 9. dxe5 {[%emt 0:00:38]} dxe5 {[%emt 0:00:55]} 10. Nd2 {[%emt 0:00:20] E94: King's Indian: Classical: 6 Be2 e5 7 0-0: Various Black 7th moves} (10. h3 c6 11. Qc2 Qe7 12. Na4 Nh5 13. c5 Nf4 14. Rad1 f5 15. Bxf4 exf4 16. exf5 Rxf5 17. Bd3 Rh5 {1-0 (32) Zhou,J (2609)-Sasikiran,K (2720) Zaozhuang 2012}) 10... c6 {[%emt 0:01:36]} 11. Rc1 $146 {[%emt 0:05:31]} ({Predecessor:} 11. Qc2 Qe7 12. Na4 Ne8 13. c5 Nc7 14. Bc4 Kh8 15. Rfd1 f5 16. f3 Nf6 17. Nb6 Rb8 18. Rac1 fxe4 19. Nxe4 Nxe4 20. fxe4 Bg4 21. Rd6 {½-½ (21) Stanojevic,B (2247)-Bogic,S (2199) Kac 2014}) 11... Qe7 {[%emt 0:02:37]} 12. c5 {[%emt 0:00:45]} Rd8 $1 {[%emt 0:07:44]} 13. Qc2 {[%emt 0:00:45]} ({Better is} 13. Na4 $11) 13... Nxc5 {[%emt 0:02:10]} 14. Nd5 {[%emt 0:05:14]} (14. Rfd1 $15) 14... cxd5 {[%emt 0:00:17]} 15. Bxc5 {[%emt 0:00:03]} Qe8 {[%emt 0:02:41]} (15... Qe6 $17 16. Qb3 dxe4) 16. exd5 $2 {[%emt 0:02:38]} (16. Bb6 $11) 16... Nxd5 {[%emt 0:03:24]} 17. Rfd1 {[%emt 0:02:19]} b6 {[%emt 0:00:53]} 18. Ba3 {[%emt 0:00:24]} Bf5 {[%emt 0:01:22]} 19. Qb3 {[%emt 0:00:39]} a4 {[%emt 0:04:57]} 20. Qb5 {[%emt 0:08:24]} Qxb5 {[%emt 0:00:25]} 21. Bxb5 {[%emt 0:00:02]} Ra5 {[%emt 0:01:45]} (21... Bh6 $19 {is more deadly.} 22. h3 {[#]} Ne3 $1 {[%mdl 512]} 23. fxe3 Bxe3+ 24. Kf1 Bxd2) 22. Bc6 {[%emt 0:01:03]} Nf4 {[%emt 0:00:20]} (22... Bh6 $17 23. Nc4 Bxc1 24. Nxa5 bxa5 25. Rxc1 Nf4) 23. Nc4 {[%emt 0:00:20]} Rc8 {[%emt 0:07:58]} 24. Nxb6 {[%emt 0:10:09]} (24. Bb7 $11 Ne2+ 25. Kf1 Nxc1 26. Bxc8 Bd3+ 27. Ke1 Bxc4 28. Rd8+ Bf8 29. Bxf8) 24... Rb8 {[%emt 0:01:12]} 25. Rc4 {[%emt 0:03:20]} Ne2+ {[%emt 0:02:15]} 26. Kh1 {[%emt 0:02:17]} (26. Kf1 $5 {[%cal Rf1e2]} Nd4 27. Bd7 $11) 26... Nd4 {[%emt 0:00:28]} 27. Nd5 {[%emt 0:09:53]} Be6 {[%emt 0:09:04]} 28. Rb4 {[%emt 0:08:23] [#]} Rxb4 $1 {[%emt 0:12:50]} ({Avoid the trap} 28... Nxc6 $2 {[#]} 29. Ne7+ $1 {[%mdl 512]} Kh8 30. Rxb8+ Nxb8 31. Rd8+ Bf8 32. Rxf8+ Kg7 33. Rxb8 $18) 29. Nxb4 {[%emt 0:02:26]} Bf8 {[%emt 0:02:23]} 30. Be4 {[%emt 0:01:40]} Rb5 {[%emt 0:01:16]} 31. Nd3 {[%emt 0:03:00]} (31. Nc6 $17 {is a better defense.}) 31... Bxa3 {[%emt 0:00:37]} 32. bxa3 {[%emt 0:00:07]} f5 {[%emt 0:00:28]} ({Don't take} 32... Bxa2 33. Nb4) 33. Ba8 {[%emt 0:02:23]} Bxa2 {[%emt 0:02:24]} 34. h4 {[%emt 0:00:20]} Nc2 {[%emt 0:07:41]} (34... Bb3 $19 {has better winning chances.} 35. Rc1 Nc2) 35. Bc6 {[%emt 0:02:36]} Ra5 {[%emt 0:02:48]} 36. Nb4 {[%emt 0:14:05]} Bb3 {[%emt 0:00:03]} 37. Nxc2 {[%emt 0:01:36]} Bxc2 {[%emt 0:00:05]} 38. Rd7 {[%emt 0:01:14]} Bb3 {[%emt 0:00:21]} 39. f3 {[%emt 0:05:22]} Rc5 {[%emt 0:00:15]} 40. Bb7 {[%emt 0:00:58]} Rc1+ {[%emt 0:00:46]} 41. Kh2 {[%emt 0:00:03]} Rc3 {[%emt 0:03:26]} 42. h5 {[%emt 0:00:57]} gxh5 {[%emt 0:00:24]} 43. Kg3 {[%emt 0:00:24]} e4 $2 {[%emt 0:00:52]} (43... Kf8 $19 44. Kh4 h6 45. Kxh5 Be6) 44. Kf4 $1 {[%emt 0:00:37]} e3 {[%emt 0:01:00]} 45. Kxf5 $2 {[%emt 0:01:56] [#]} (45. Re7 $15) 45... Kf8 $2 {[%emt 0:07:37]} (45... Bc4 $1 $19 46. Be4 Bb5) 46. Ba6 $2 {[%emt 0:01:18]} (46. Kf6 $11 {and White has nothing to worry.} Ke8 47. Rxh7) 46... Rc6 {[%emt 0:00:26]} 47. Ra7 {[%emt 0:02:37] [#]} (47. Ke4 $142 Re6+ 48. Kd4) 47... Bd1 $2 {[%emt 0:04:09]} (47... Rxa6 $1 {[%mdl 512]} 48. Rxa6 e2 49. Ra8+ Ke7 50. Ra7+ Ke8 51. Ra8+ Ke7 52. Ra7+ Kd6 53. Ra6+ Ke7 54. Ra7+) 48. Bb5 {[%emt 0:01:15]} (48. Ra8+ $142 Ke7 49. Kf4) 48... Bc2+ $2 {[%emt 0:02:11]} ({Black should play} 48... e2 $19 49. Bxe2 Bxe2 50. Rxa4 Rg6) 49. Kf4 {[%emt 0:00:24]} Re6 {[%emt 0:00:10]} 50. Be2 {[%emt 0:00:15]} h4 {[%emt 0:00:50]} 51. Rc7 {[%emt 0:00:07]} Bd1 {[%emt 0:03:41]} 52. Bxd1 {[%emt 0:00:41]} e2 {[%emt 0:00:03]} 53. Bxe2 {[%emt 0:00:14]} Rxe2 {[%emt 0:00:04]} 54. Rxh7 {[%emt 0:01:39]} Rxg2 {[%emt 0:00:09]} 55. Kf5 {[%emt 0:00:22]} Ra2 {[%emt 0:00:21]} 56. f4 $1 {[%emt 0:00:28]} Rxa3 {[%emt 0:00:08]} 57. Rxh4 {[%emt 0:00:13]} Ra1 {[%emt 0:00:25]} 58. Kf6 {[%emt 0:00:10]} Kg8 {[%emt 0:00:02]} 59. f5 {[%emt 0:00:02]} a3 {[%emt 0:00:28]} 60. Rg4+ {[%emt 0:00:09]} Kf8 {[%emt 0:00:48]} 61. Ra4 {[%emt 0:00:01]} Kg8 {[%emt 0:00:20]} 62. Ra8+ {[%emt 0:00:11]} Kh7 {[%emt 0:00:08]} 63. Kf7 {[%emt 0:00:05]} Rb1 {[%emt 0:01:32]} 64. Rxa3 {[%emt 0:00:09]} Rb7+ {[%emt 0:00:03]} 65. Kf6 {[%emt 0:00:04]} Rb6+ {[%emt 0:00:04]} 66. Kg5 {[%emt 0:00:04]} Kg8 {[%emt 0:00:58]} 67. Re3 {[%emt 0:00:07]} Kf7 {[%emt 0:00:18]} 68. Rh3 {[%emt 0:00:02]} Kg7 {[%emt 0:00:26]} 69. Rh1 {[%emt 0:00:06]} Ra6 {[%emt 0:00:08]} ({Better is} 69... Rb2 $11) 70. Rb1 {[%emt 0:00:02]} Kf8 {[%emt 0:00:38]} 71. Rb8+ {[%emt 0:00:03]} Kg7 {[%emt 0:00:13]} 72. Rc8 {[%emt 0:00:09]} Rb6 {[%emt 0:00:11]} 73. Rd8 {[%emt 0:00:03]} Ra6 {[%emt 0:00:32]} 74. Re8 {[%emt 0:00:02]} Kf7 {[%emt 0:00:19]} 75. Rh8 {[%emt 0:00:10]} Kg7 {[%emt 0:00:12]} 76. Re8 {[%emt 0:00:07]} Kf7 {[%emt 0:00:08]} 77. Rb8 {[%emt 0:00:12]} Rc6 {[%emt 0:00:14]} 78. Rb7+ {[%emt 0:00:17]} Kf8 {[%emt 0:00:23]} 79. Kf4 $11 {[%emt 0:00:27]} Ra6 {[%emt 0:00:24]} 80. Ke5 {[%emt 0:00:01]} Ra5+ {[%emt 0:00:32]} 81. Kf6 {[%emt 0:00:02]} Ra6+ {[%emt 0:00:05]} 82. Kg5 {[%emt 0:00:01]} Rc6 {[%emt 0:00:16]} 83. Rb8+ {[%emt 0:00:30]} Kf7 {[%emt 0:00:14]} 84. Rb7+ {[%emt 0:00:02]} Kf8 {[%emt 0:00:07]} 85. f6 {[%emt 0:00:01]} Rc1 {[%emt 0:00:09]} 1/2-1/2

[Event "Karnataka State Open-ch 2018"]
[Site "Bengaluru"]
[Date "2018.04.18"]
[Round "10"]
[White "Sanjay Sindhia, MH."]
[Black "Raducanu, Andrei-Augustin"]
[Result "0-1"]
[ECO "A80"]
[WhiteElo "1761"]
[BlackElo "2063"]
[Annotator "NA RC"]
[PlyCount "118"]
[EventDate "2018.??.??"]
[EventType "swiss"]
[EventCountry "IND"]
[SourceTitle "playchess.com"]
[Source "ChessBase"]
[SourceQuality "1"]
[TimeControl "5400+30"]

{[%evp 8,118,73,42,58,50,120,104,95,80,89,87,91,81,90,73,77,83,98,83,162,145,168,53,41,26,92,78,130,118,136,83,99,81,114,103,188,179,179,165,142,75,74,70,66,33,56,51,56,42,45,7,17,14,18,22,18,13,16,18,18,6,32,8,12,15,17,10,85,71,171,79,181,95,66,183,215,132,195,124,132,0,0,0,0,0,0,0,29991,0,0,-631,-772,-764,-689,-694,-960,-718,-1069,-498,-1151,-1092,-1067,-1250,-1277,-1637,-2052,-2162,-29977,-29983,-29987,-29986,-12846]} 1. d4 {[%emt 0:00:00]} f5 {[%emt 0:00:20]} 2. Nc3 {[%emt 0:00:00]} g6 {[%emt 0:00:34]} 3. e4 {[%emt 0:01:42]} fxe4 {[%emt 0:05:15]} 4. Nxe4 {[%emt 0:00:04]} Bg7 {[%emt 0:00:53]} 5. Nf3 {[%emt 0:02:08]} Nf6 {[%emt 0:01:00] A82: Dutch Defence: Staunton Gambit} (5... d5 6. Nc5 b6 7. Nd3 Nf6 8. Be2 c5 9. dxc5 bxc5 10. c4 O-O 11. O-O Na6 12. cxd5 Qxd5 13. Nde5 e6 14. Qa4 Nc7 15. Be3 Ne4 16. Nc6 {1-0 (16) Atalik,S (2545)-Ugrcic,Z (2030) Belgrade 2017}) 6. Ng3 {[%emt 0:03:43]} e6 {[%emt 0:03:49]} (6... d5 $14) 7. Bd3 {[%emt 0:03:31]} Nc6 {[%emt 0:08:13]} 8. c3 $146 {[%emt 0:00:10]} ({Find the theoretical novelty and annotate with similar games:} 8. h4 O-O 9. h5 Qe8 10. hxg6 hxg6 11. Qe2 Nd5 12. c3 Nce7 13. Bd2 {1-0 (32) Molnar,P (2261)-Jusko,J (1856) Kosice 2010}) 8... Qe7 {[%emt 0:00:55]} 9. O-O {[%emt 0:01:22]} b6 {[%emt 0:03:35]} 10. Re1 {[%emt 0:02:37]} Bb7 {[%emt 0:05:13]} 11. Bg5 {[%emt 0:04:37]} O-O {[%emt 0:06:09]} 12. Qc2 {[%emt 0:05:16]} Qf7 {[%emt 0:13:39]} 13. h4 {[%emt 0:01:51]} Nd5 {[%emt 0:08:43] [#]} (13... Ne7 $16 {was called for.}) 14. h5 $1 {[%emt 0:01:34]} Nce7 {[%emt 0:00:51]} 15. Bxe7 {[%emt 0:13:00]} (15. Ne5 $18 Bxe5 16. dxe5 (16. Rxe5 Kh8 $16)) 15... Nxe7 {[%emt 0:00:39]} 16. hxg6 {[%emt 0:01:26]} hxg6 {[%emt 0:03:19]} (16... Nxg6 $11 {keeps the balance.} 17. Be4 Bxe4 18. Qxe4 (18. Nxe4 Nf4 $11) 18... Nf4) 17. Be4 {[%emt 0:18:26]} c6 {[%emt 0:24:34]} 18. Rad1 {[%emt 0:16:18]} Nf5 {[%emt 0:05:43]} 19. Nf1 {[%emt 0:01:06]} d5 {[%emt 0:02:09]} 20. Bd3 {[%emt 0:02:16]} Bf6 {[%emt 0:00:01]} 21. N1h2 {[%emt 0:06:03]} Kg7 {[%emt 0:04:52]} (21... Rae8 $16 22. Ng4 Qh7 23. Nxf6+ Rxf6) 22. Ng4 {[%emt 0:01:53]} Rae8 {[%emt 0:00:07]} 23. Qc1 {[%emt 0:01:57]} Rh8 {[%emt 0:00:12]} 24. Ng5 {[%emt 0:00:41]} (24. g3 $142) 24... Bxg5 $1 {[%emt 0:01:07]} 25. Qxg5 {[%emt 0:00:03]} Rh5 $1 {[%emt 0:00:30]} 26. Qf4 {[%emt 0:02:01]} Nh6 $1 {[%emt 0:00:07]} 27. Qxf7+ {[%emt 0:01:20]} Nxf7 {[%emt 0:00:02]} 28. f3 {[%emt 0:01:37]} Bc8 {[%emt 0:01:00]} 29. f4 {[%emt 0:01:54]} Rh4 {[%emt 0:00:51]} 30. Ne5 {[%emt 0:00:29]} Nxe5 {[%emt 0:00:17]} 31. fxe5 {[%emt 0:00:24]} c5 {[%emt 0:00:04]} 32. Be2 {[%emt 0:02:07]} Rf8 {[%emt 0:00:32]} 33. g3 {[%emt 0:00:51]} Re4 {[%emt 0:00:35]} 34. Kg2 {[%emt 0:00:46]} Re3 {[%emt 0:01:05]} 35. Bg4 {[%emt 0:00:51]} Rxe1 {[%emt 0:00:15]} 36. Rxe1 {[%emt 0:00:02]} Kh6 {[%emt 0:00:45]} 37. Rh1+ {[%emt 0:01:10]} Kg5 {[%emt 0:00:09]} (37... Kg7 $1 $11 {keeps the balance.}) 38. Be2 {[%emt 0:00:09]} c4 (38... Rf7 $16) 39. Bd1 {[%emt 0:01:00]} (39. Rh7 $18 {is more deadly.}) 39... b5 {[%emt 0:01:16]} (39... Rf7 $16) 40. a3 {[%emt 0:01:04]} ({White should try} 40. Rh7 $18) 40... a5 {[%emt 0:00:31]} 41. Rh7 {[%emt 0:00:42]} b4 {[%emt 0:00:31]} 42. axb4 {[%emt 0:00:59]} (42. Rg7 $18) 42... axb4 {[%emt 0:00:05]} 43. Ba4 {[%emt 0:00:26]} ({White should try} 43. cxb4 $18 Ba6 44. Bc2) 43... b3 {[%emt 0:00:27] [#]} 44. Bb5 $1 {[%emt 0:00:47]} ({Only move:} 44. Ra7 $1 $16) 44... Kf5 {[%emt 0:00:45]} 45. Kf3 {[%emt 0:01:24]} Kg5+ {[%emt 0:00:01]} 46. Kg2 {[%emt 0:00:07]} Kf5 {[%emt 0:00:04]} 47. Kf3 {[%emt 0:00:04]} g5 $2 {[%emt 0:00:38]} 48. Rh6 $2 {[%emt 0:01:00]} (48. Rg7 {mates} g4+ 49. Rxg4 Rf6 50. exf6 Kxf6 51. Rg8 Bd7 52. Bxd7 Ke7 53. Bb5) 48... g4+ {[%emt 0:00:11]} 49. Kg2 $2 {[%emt 0:00:42] [#]} (49. Ke3 $11) 49... Ke4 $1 {[%emt 0:00:44]} 50. Rf6 {[%emt 0:00:29]} Rh8 {[%emt 0:00:37]} 51. Rf4+ {[%emt 0:00:40]} Kd3 {[%emt 0:00:10]} 52. Rf2 {[%emt 0:00:22]} Ke3 {[%emt 0:00:02]} 53. Rf4 {[%emt 0:00:24]} Kd2 {[%emt 0:00:02]} 54. Rf2+ {[%emt 0:00:12]} Kc1 {[%emt 0:00:24]} 55. Bc6 {[%emt 0:00:21]} Rd8 {[%emt 0:01:08]} 56. Bb5 {[%emt 0:01:02]} Bd7 {[%emt 0:00:04]} 57. Bxd7 {[%emt 0:00:37]} Rxd7 {[%emt 0:00:01]} 58. Rf6 {[%emt 0:00:29]} Kxb2 {[%emt 0:00:20]} 59. Rxe6 {[%emt 0:00:13]} Rb7 $19 {[%emt 0:00:29]} 0-1